bitfinex-derivatives/quotes_ETHF0:USTF0_20251013
["timestamp","ask_amount","ask_price","bid_price","bid_amount"]
[1760339703306,7.26471228,4184.1,4184.0,0.11800133]
[1760339703507,7.26471228,4184.1,4184.0,0.68160133]
[1760339704005,3.62697228,4184.1,4184.0,0.68160133]
[1760339704203,1.07461,4185.1,4184.6,0.5636]
[1760339704204,0.42987,4184.8,4184.6,0.5636]
[1760339704610,3.2078,4185.1,4185.0,0.7907]
[1760339704807,3.79244822,4185.1,4185.0,0.7907]
[1760339705003,3.04211734,4185.1,4185.0,0.7907]
[1760339705410,3.49520841,4185.6,4185.5,0.7907]
[1760339705612,0.42979,4185.6,4185.5,0.7907]
[1760339706012,3.49520841,4185.6,4185.5,0.7907]
[1760339706906,3.06541841,4185.6,4185.5,0.7907]
[1760339707114,3.2078,4186.2,4186.1,0.5636]
[1760339707612,3.14050495,4186.4,4186.3,0.5636]
[1760339707807,0.04372673,4186.5,4186.4,0.4297]
[1760339708013,0.002141,4186.5,4186.4,0.9933]
[1760339709316,0.002141,4186.5,4186.4,0.5636]
[1760339710210,3.59881267,4186.5,4186.4,0.5636]
[1760339711811,0.42973,4186.1,4186.0,0.7907]
[1760339712007,5.22858838,4186.1,4186.0,0.7907]
[1760339712211,8.30068981,4186.1,4186.0,0.7907]
[1760339712619,8.88327698,4186.1,4186.0,0.7907]
[1760339712813,8.30068981,4186.1,4186.0,0.7907]
[1760339713115,8.88328368,4186.1,4186.0,0.7907]
[1760339716917,8.88328368,4186.1,4186.0,0.2271]
[1760339717219,8.88328368,4186.1,4186.0,0.7907]
[1760339719319,8.88328368,4186.1,4186.0,0.2271]
[1760339719916,8.88328368,4186.1,4186.0,0.7845]
[1760339721925,8.88328368,4186.1,4186.0,0.2271]
[1760339722120,0.42978,4185.6,4185.0,0.7845]
[1760339722323,0.42988,4184.7,4184.5,0.2271]
[1760339722722,0.42994,4184.1,4184.0,0.24060133]
[1760339723024,11.13355637,4184.1,4183.5,0.2382]
[1760339723219,0.42996,4183.9,4183.5,0.2382]
[1760339723415,11.13355637,4184.1,4183.5,0.2382]
[1760339723627,3.0835095,4183.8,4183.5,0.66819]
[1760339723824,3.5134695,4183.9,4183.5,0.24084441]
[1760339724020,0.42996,4183.9,4183.5,0.24084441]
[1760339724323,3.52454277,4183.8,4183.6,0.5574]
[1760339724531,0.42999,4183.6,4183.5,0.79824441]
[1760339724925,8.00665838,4184.1,4183.6,0.5574]
[1760339725130,3.04321301,4183.6,4183.5,0.24084441]
[1760339725430,3.04321301,4183.8,4183.5,0.79824441]
[1760339725630,0.42995,4184.0,4183.5,0.24084441]
[1760339725830,3.04321301,4183.7,4183.6,0.5574]
[1760339726333,8.00665838,4184.1,4183.5,0.24084441]
[1760339726334,0.42999,4183.6,4183.5,0.24084441]
[1760339726524,0.43002,4183.3,4183.0,0.2382]
[1760339726726,0.43004,4183.2,4183.0,0.2382]
[1760339726931,3.56054041,4183.2,4183.0,0.2382]
[1760339727227,3.13050041,4183.2,4183.0,0.2382]
[1760339727528,3.0801513,4183.3,4183.1,0.5574]
[1760339727732,3.08194217,4183.3,4183.2,0.5574]
[1760339728030,0.00179087,4183.3,4183.2,0.5574]
[1760339728222,3.13807147,4183.3,4183.2,0.5574]
[1760339729929,3.56809147,4183.3,4183.1,0.00280466]
[1760339730733,3.56809147,4183.3,4183.1,0.56020466]
[1760339731230,3.56809147,4183.3,4183.1,0.00280466]
[1760339732034,3.13807147,4183.3,4183.2,0.5574]
[1760339732334,3.13807147,4183.3,4183.2,0.98743]
[1760339732725,7.93692985,4183.3,4183.2,0.5574]
[1760339733936,7.93692985,4183.3,4183.1,0.43283466]
[1760339733937,8.36694985,4183.3,4183.1,0.00280466]
[1760339736536,8.36694985,4183.3,4183.1,0.56020466]
[1760339737538,8.36694985,4183.3,4183.1,0.00280466]
[1760339739039,8.36694985,4183.3,4183.2,0.5574]
[1760339739040,3.13807147,4183.3,4183.2,0.5574]
[1760339739436,3.13807147,4183.3,4183.1,0.00280466]
[1760339739437,3.56810147,4183.3,4183.1,0.00280466]
[1760339739631,3.56810147,4183.3,4183.2,0.5574]
[1760339739632,3.13807147,4183.3,4183.2,0.5574]
[1760339742049,3.13807147,4183.3,4183.2,1.3398]
[1760339742447,3.2078,4183.9,4183.7,0.42997]
[1760339742643,3.2078,4183.9,4183.8,0.5574]
[1760339742844,3.2078,4183.9,4183.2,3.2078]
[1760339743044,0.43007,4182.8,4182.7,3.2078]
[1760339743252,5.22892838,4182.8,4182.7,3.2078]
[1760339743750,4.79885838,4182.8,4182.7,3.2078]
[1760339743946,4.80126388,4182.8,4182.7,3.21089685]
[1760339744343,5.23133388,4182.8,4182.7,0.00309685]
[1760339745153,4.80126388,4182.8,4182.7,0.59619685]
[1760339745553,4.80126388,4182.8,4182.7,0.00309685]
[1760339746056,0.0024055,4182.8,4182.7,0.96449685]
[1760339746253,0.0024055,4182.8,4182.7,1.34269685]
[1760339746458,0.0024055,4182.8,4182.7,0.59619685]
[1760339746655,0.0024055,4182.8,4182.7,0.96449685]
[1760339747160,0.0024055,4182.8,4182.7,0.59619685]
[1760339748561,0.0024055,4182.8,4182.7,0.96449685]
[1760339748859,0.0024055,4182.8,4182.7,1.34269685]
[1760339749957,0.0024055,4182.8,4182.7,4.55049685]
[1760339750658,0.0024055,4182.8,4182.7,3.80399685]
[1760339751259,0.0024055,4182.8,4182.7,0.59619685]
[1760339751956,1.07521,4182.7,4182.2,3.7857]
[1760339752158,0.43013,4182.2,4182.1,0.5779]
[1760339752355,1.01626209,4182.2,4182.1,0.5779]
[1760339752964,1.01626209,4182.2,4182.1,0.57972399]
[1760339753153,4.08037647,4182.2,4182.1,0.00182399]
[1760339753458,7.28817647,4182.2,4182.1,0.00182399]
[1760339753761,0.43019,4181.7,4181.5,0.2382]
[1760339754064,0.58661486,4181.6,4181.5,0.2382]
[1760339754362,0.58661486,4181.6,4181.2,3.2078]
[1760339754363,0.4302,4181.5,4181.2,3.2078]
[1760339754558,0.43022,4181.4,4181.2,3.21066957]
[1760339754757,3.59422968,4181.4,4181.2,3.21066957]
[1760339755058,5.38528843,4181.3,4181.2,0.00286957]
[1760339755760,4.4895551,4182.1,4181.3,0.43022]
[1760339756065,3.07012275,4181.3,4180.3,0.43032]
[1760339756361,4.79885838,4180.4,4180.3,0.5779]
[1760339757153,4.79885838,4180.4,4180.3,0.58022681]
[1760339759368,4.79885838,4180.4,4180.3,1.01055681]
[1760339760265,2.35556657,4181.8,4180.3,1.01055681]
[1760339760266,3.2078,4181.2,4181.0,0.2359]
[1760339760463,3.2078,4181.7,4181.5,0.2359]
[1760339760654,6.32268615,4181.7,4181.6,0.5779]
[1760339760858,3.79144118,4181.7,4181.6,0.5779]
[1760339761154,7.33650733,4181.7,4181.6,0.5779]
[1760339761557,6.90632733,4181.7,4181.6,0.5779]
[1760339761761,6.90632733,4181.7,4181.5,0.2359]
[1760339761964,6.90632733,4181.7,4180.5,0.8138]
[1760339761965,0.58364118,4181.6,4180.5,0.8138]
[1760339762168,0.58364118,4181.6,4181.5,0.2359]
[1760339762360,3.2078,4181.7,4181.6,0.5779]
[1760339762661,3.2078,4182.2,4182.1,0.5779]
[1760339763066,6.36387226,4182.2,4182.1,0.5779]
[1760339763966,0.0024055,4182.8,4182.6,0.5779]
[1760339763967,3.2078,4182.7,4182.6,0.5779]
[1760339764771,0.0024055,4182.8,4182.7,0.43008]
[1760339764958,0.0024055,4182.8,4182.7,1.00798]
[1760339766372,0.0024055,4182.8,4182.7,0.5779]
[1760339770468,0.0024055,4182.8,4182.7,3.7857]
[1760339770869,3.2078,4184.2,4184.1,0.5779]
[1760339771765,3.20982415,4184.2,4184.1,0.58093309]
[1760339772560,6.33684021,4184.2,4184.1,0.00303309]
[1760339772760,6.33684021,4184.2,4184.1,0.58093309]
[1760339773365,3.20982415,4184.2,4184.1,0.58093309]
[1760339774662,3.20982415,4184.2,4184.1,0.00303309]
[1760339774866,6.36110857,4184.2,4184.1,0.00303309]
[1760339775268,6.94516509,4184.2,4184.1,0.00303309]
[1760339775470,6.36110857,4184.2,4184.1,0.00303309]
[1760339775778,3.2078,4185.3,4185.1,0.5779]
[1760339775980,3.2078,4185.3,4185.0,0.2359]
[1760339776271,8.56118318,4185.1,4185.0,0.2359]
[1760339776473,5.4165083,4185.1,4185.0,0.8138]
[1760339776974,5.4195942,4185.1,4185.0,0.8138]
[1760339778172,8.5615974,4185.1,4185.0,0.8138]
[1760339779575,0.42984,4185.0,4184.5,0.2359]
[1760339779774,0.42984,4185.0,4184.6,0.5702]
[1760339779977,3.0908453,4184.9,4184.5,0.2359]
[1760339780471,3.5207053,4184.9,4184.5,0.2359]
[1760339780770,3.0908453,4184.9,4184.6,0.5702]
[1760339781269,3.5207053,4184.9,4184.5,0.2359]
[1760339781676,0.42988,4184.7,4184.5,0.2359]
[1760339781873,0.42991,4184.3,4184.2,0.5702]
[1760339782075,9.0542183,4184.3,4184.2,0.5702]
[1760339782273,9.0542183,4184.3,4184.1,0.00303309]
[1760339782274,12.17602259,4184.3,4184.1,0.00303309]
[1760339783884,12.17602259,4184.3,4184.1,0.57323309]
[1760339784881,6.32960429,4184.3,4184.2,0.5702]
[1760339787780,3.2078,4184.3,4184.2,0.5702]
[1760339788469,3.2078,4184.8,4184.5,0.65839]
[1760339788671,3.2078,4184.8,4184.7,0.5702]
[1760339792983,0.42989,4184.6,4184.1,0.57323309]
[1760339793176,1.07469,4184.7,4184.1,0.57323309]
[1760339793177,5.8464383,4184.2,4184.1,0.57323309]
[1760339794579,5.8464383,4184.2,4184.1,0.00303309]
[1760339794785,8.89181708,4184.2,4184.1,0.00303309]
[1760339794978,9.47375387,4184.2,4184.1,0.00303309]
[1760339797986,0.43002,4183.3,4183.2,0.5702]
[1760339798284,0.43002,4183.3,4183.0,0.7987]
[1760339798488,0.43002,4183.3,4183.0,0.2285]
[1760339798692,0.43002,4183.3,4183.1,0.5702]
[1760339798986,0.43002,4183.3,4183.1,0.57266213]
[1760339799187,0.43002,4183.3,4183.1,0.00246213]
[1760339799188,3.13523232,4183.2,4183.1,0.00246213]
[1760339800275,3.13523232,4183.2,4183.1,0.57266213]
[1760339800477,3.13523232,4183.2,4183.1,0.00246213]
[1760339800678,3.71819814,4183.2,4183.1,0.00246213]
[1760339803282,1.07513,4183.0,4182.1,0.5702]
[1760339803478,1.07513,4183.0,4181.4,0.43021]
[1760339803479,0.43017,4181.8,4181.7,0.5702]
[1760339803989,3.63794,4182.2,4182.1,0.5702]
[1760339804287,3.63794,4182.2,4182.1,0.57221755]
[1760339804288,6.69901218,4182.2,4182.1,0.57221755]
[1760339804484,3.06107218,4182.2,4182.1,1.31911755]
[1760339804690,3.2078,4183.2,4183.1,0.3618]
[1760339804984,0.43002,4183.3,4183.2,0.5692]
[1760339805191,0.43002,4183.3,4183.0,0.2182]
[1760339805486,3.59106725,4183.3,4183.1,0.5692]
[1760339805779,3.59397979,4183.3,4183.0,0.2182]
[1760339805989,3.16395979,4183.3,4183.0,0.2182]
[1760339806178,3.16395979,4183.3,4183.1,0.3618]
[1760339806380,3.16395979,4183.3,4183.0,0.64824]
[1760339806381,3.16395979,4183.3,4183.2,0.5692]
[1760339806580,3.59397979,4183.3,4183.0,0.2182]
[1760339806788,3.59397979,4183.3,4183.1,0.5692]
[1760339807485,3.16395979,4183.3,4183.0,0.2182]
[1760339807788,3.16395979,4183.3,4183.1,0.5692]
[1760339807989,3.16395979,4183.3,4183.2,0.5692]
[1760339808485,0.43003,4183.2,4182.9,0.5692]
[1760339808781,0.43003,4183.2,4182.7,3.2078]
[1760339808782,0.43003,4183.2,4182.8,0.99927]
[1760339808989,0.43003,4183.2,4183.0,0.2182]
[1760339809184,0.43003,4183.2,4183.1,0.5692]
[1760339810390,0.43003,4183.2,4183.0,0.2182]
[1760339810990,0.43003,4183.2,4183.0,0.7581]
[1760339811187,3.16395979,4183.3,4183.1,0.5399]
[1760339811686,3.16395979,4183.3,4183.2,0.5399]
[1760339812493,0.43003,4183.2,4183.0,0.2182]
[1760339812790,6.35015167,4183.1,4183.0,0.2182]
[1760339812986,6.35015167,4183.1,4182.5,0.2182]
[1760339812987,6.35015167,4183.1,4182.5,0.7581]
[1760339813188,6.35015167,4183.1,4182.2,0.5399]
[1760339813189,9.0543983,4182.6,4182.2,0.5399]
[1760339813396,9.0543983,4182.6,4182.5,0.77]
[1760339813790,11.73329549,4182.6,4182.5,1.1342]
[1760339814395,11.73329549,4182.6,4182.5,0.77]
[1760339815088,11.73329549,4182.6,4182.5,0.2301]
[1760339815290,0.4301,4182.5,4182.2,0.5399]
[1760339815491,11.73329549,4182.6,4182.5,0.77]
[1760339815998,3.2078,4183.1,4183.0,1.5043]
[1760339817291,3.2078,4183.1,4183.0,0.77]
[1760339817684,0.43007,4182.8,4182.6,0.5399]
[1760339817997,5.4165083,4182.7,4182.6,0.5399]
[1760339819888,5.4165083,4182.7,4182.6,0.9041]
[1760339820288,5.4165083,4182.7,4182.6,0.5399]
[1760339821296,5.4165083,4182.7,4182.5,1.2001]
[1760339822390,5.4165083,4182.7,4182.6,0.5399]
[1760339822587,5.4165083,4182.7,4182.6,0.9041]
[1760339823485,3.2078,4183.1,4183.0,1.5043]
[1760339823685,3.79096282,4183.1,4183.0,1.5043]
[1760339823884,3.2078,4183.1,4183.0,1.5043]
[1760339825496,3.2078,4183.1,4183.0,1.1342]
[1760339826498,3.2078,4183.1,4183.0,0.77]
[1760339827287,3.2078,4183.1,4183.0,1.1342]
[1760339827703,3.2078,4183.1,4183.0,0.77]
[1760339827990,3.78844021,4183.1,4183.0,0.77]
[1760339829192,3.2078,4183.1,4183.0,1.5043]
[1760339829390,8.01168617,4183.1,4183.0,1.5043]
[1760339829999,4.80388617,4183.1,4183.0,1.5043]
[1760339830790,5.3846531,4183.1,4183.0,1.5043]
[1760339831001,5.3846531,4183.1,4183.0,0.77]
[1760339831588,5.3846531,4183.1,4182.5,0.4301]
[1760339831589,1.1803,4182.6,4182.5,0.4301]
[1760339831788,5.98418617,4182.6,4182.5,0.4301]
[1760339832000,5.98418617,4182.6,4181.6,1.07549]
[1760339832001,0.7699,4182.2,4181.6,3.2078]
[1760339832194,5.57378617,4181.7,4181.3,0.43022]
[1760339832400,0.7699,4181.4,4181.3,1.16452]
[1760339832893,0.7699,4181.4,4181.1,3.2078]
[1760339832894,0.7699,4181.4,4181.2,0.43023]
[1760339833094,0.7699,4181.4,4181.2,0.4319228]
[1760339833289,1.1803,4181.3,4181.2,0.0016928]
[1760339833696,5.19528617,4181.6,4181.5,1.1342]
[1760339833892,5.19528617,4181.6,4181.5,1.5644]
[1760339834093,0.2052,4182.5,4182.0,1.93445]
[1760339834094,4.80388617,4182.1,4182.0,1.93445]
[1760339834397,4.80388617,4182.1,4182.0,5.14225]
[1760339835097,5.19528617,4182.1,4182.0,5.14225]
[1760339835491,0.4104,4182.8,4182.0,3.9778]
[1760339835687,0.58022753,4182.7,4182.6,0.43009]
[1760339835892,4.80388617,4182.8,4182.6,0.96999]
[1760339836300,0.4104,4182.7,4182.6,0.5399]
[1760339836497,3.08873265,4182.7,4182.1,0.5399]
[1760339836698,3.08873265,4182.7,4181.6,1.68756984]
[1760339836699,0.84055,4182.1,4181.6,0.97009]
[1760339836902,0.43015,4182.1,4181.6,0.5399]
[1760339837098,0.43016,4182.0,4181.7,0.43018]
[1760339837403,4.80388617,4181.8,4181.7,0.97008]
[1760339838099,0.4104,4181.7,4181.0,3.4379]
[1760339838298,0.4104,4181.7,4181.3,0.43022]
[1760339838299,0.4104,4181.6,4181.3,0.43022]
[1760339838499,0.4104,4181.5,4181.3,0.43022]
[1760339838800,0.4104,4181.7,4181.3,0.43022]
[1760339838995,0.4104,4181.6,4181.3,0.43022]
[1760339839195,0.4104,4181.6,4181.4,0.43021]
[1760339839494,5.23406617,4181.8,4181.4,0.43021]
[1760339839914,0.3974,4181.6,4181.4,0.43021]
[1760339840098,0.3974,4181.6,4181.5,0.4302]
[1760339840998,0.3974,4181.6,4181.5,0.9857]
[1760339841403,0.3974,4181.6,4181.5,0.4302]
[1760339841697,0.3974,4181.6,4181.5,0.9857]
[1760339842104,0.3974,4181.6,4181.5,0.4302]
[1760339842804,3.04522379,4181.7,4181.6,0.5555]
[1760339843406,3.43112379,4181.7,4181.6,0.9233]
[1760339843602,3.78182379,4181.7,4181.6,0.9233]
[1760339843899,4.17922379,4181.7,4181.6,0.5555]
[1760339844402,4.17922379,4181.7,4181.5,0.6443]
[1760339844403,1.134,4181.6,4181.5,0.4302]
[1760339844599,1.134,4181.3,4181.2,0.4319128]
[1760339844799,5.93788617,4181.3,4181.2,0.4319128]
[1760339844992,5.93788617,4181.3,4181.2,0.0016928]
[1760339845495,1.134,4181.3,4181.2,0.5571928]
[1760339845700,5.93788617,4181.3,4181.2,0.5571928]
[1760339845900,5.20128617,4181.3,4181.2,0.5571928]
[1760339846101,5.20128617,4181.3,4181.2,0.0016928]
[1760339846304,8.32023882,4181.3,4181.2,0.0016928]
[1760339848004,0.3974,4181.2,4180.6,0.43029]
[1760339848204,0.3974,4180.6,4180.4,0.43031]
[1760339848505,4.80388617,4180.7,4180.4,0.43031]
[1760339848705,0.3974,4180.6,4180.5,0.4303]
[1760339848905,3.15268311,4180.6,4180.5,1.20235552]
[1760339849106,3.2078,4180.8,4180.7,0.43029]
[1760339849299,4.80388617,4181.2,4180.6,3.2078]
[1760339849493,4.80388617,4181.2,4180.7,0.5555]
[1760339849903,4.80388617,4181.2,4181.1,0.98575]
[1760339851197,5.20128617,4181.2,4180.9,0.43026]
[1760339851399,0.3974,4181.1,4180.9,0.43026]
[1760339851604,0.3974,4181.1,4181.0,0.43025]
[1760339853007,0.3974,4181.1,4181.0,0.98575]
[1760339853209,1.134,4181.1,4181.0,0.43025]
[1760339853405,0.3507,4180.8,4180.7,0.0598]
[1760339853607,0.7366,4180.8,4180.7,0.9831]
[1760339854609,4.80388617,4181.2,4180.8,0.5555]
[1760339854810,4.80388617,4181.2,4180.7,0.0598]
[1760339854811,0.3507,4181.1,4181.0,0.98575]
[1760339855007,0.7366,4181.1,4181.0,0.98575]
[1760339855206,1.134,4181.1,4181.0,0.98575]
[1760339855403,0.7366,4180.8,4180.7,0.49008]
[1760339855612,0.43031,4180.5,4180.0,0.43035]
[1760339855809,0.3974,4180.0,4179.7,0.5555]
[1760339856310,0.3974,4180.0,4179.8,0.43037]
[1760339856501,0.3974,4180.0,4179.9,0.43036]
[1760339856708,0.40048175,4180.0,4179.9,0.43222812]
[1760339857412,0.00308175,4180.0,4179.9,0.98772812]
[1760339857807,0.40048175,4180.0,4179.9,0.43222812]
[1760339858009,0.40048175,4180.0,4179.9,0.00186812]
[1760339858316,1.13708175,4180.0,4179.9,0.00186812]
[1760339858513,3.83316969,4180.0,4179.9,0.92516812]
[1760339858715,0.73968175,4180.0,4179.9,0.92516812]
[1760339859106,0.73968175,4180.0,4179.9,1.35553812]
[1760339860411,0.73968175,4180.0,4179.9,0.98773812]
[1760339861310,1.13708175,4180.0,4179.9,0.98773812]
[1760339861914,0.73968175,4180.0,4179.9,1.35553812]
[1760339862611,0.73968175,4180.0,4179.9,0.98773812]
[1760339862806,1.13708175,4180.0,4179.9,0.98773812]
[1760339863216,1.13708175,4180.0,4179.9,0.00186812]
[1760339863519,0.7366,4179.2,4179.1,4.56155]
[1760339863817,0.3974,4179.6,4179.5,1.95391]
[1760339863818,0.3859,4179.6,4179.5,1.95391]
[1760339864017,5.54048617,4179.9,4179.8,1.35367]
[1760339864314,0.00308175,4180.0,4179.9,1.3094]
[1760339864514,0.35898175,4180.0,4179.9,1.3094]
[1760339866216,0.00308175,4180.0,4179.9,1.3094]
[1760339866425,0.00308175,4180.0,4179.9,4.5172]
[1760339867119,0.35898175,4180.0,4179.9,4.4863]
[1760339867318,0.00308175,4180.0,4179.9,4.4863]
[1760339868114,5.15978617,4180.9,4180.8,0.80658]
[1760339868315,5.15978617,4180.9,4180.8,1.36618]
[1760339868724,5.53518617,4180.9,4180.8,1.36618]
[1760339869023,5.53761177,4180.9,4180.8,1.36618]
[1760339870024,0.0024256,4180.9,4180.8,1.72138]
[1760339875327,1.41976063,4180.9,4180.8,1.72138]
[1760339877520,3.2078,4181.5,4181.4,0.43021]
[1760339877725,3.5596,4182.0,4181.9,1.2668]
[1760339877927,3.9039,4182.0,4181.9,0.9187]
[1760339878123,4.2825,4182.0,4181.9,0.9187]
[1760339878524,3.90572827,4182.0,4181.9,1.2668]
[1760339879325,3.56142827,4182.0,4181.9,1.2668]
[1760339879525,3.20962827,4182.0,4181.9,1.2668]
[1760339880125,3.56142827,4182.0,4181.9,1.2668]
[1760339880321,3.90572827,4182.0,4181.9,0.5707]
[1760339880527,1.0747,4181.6,4181.5,0.4302]
[1760339881020,0.3786,4181.5,4181.3,3.2078]
[1760339881219,2.49203503,4181.4,4181.3,3.2078]
[1760339881531,5.1899101,4181.4,4181.2,0.43023]
[1760339881831,1.12632,4181.3,4181.0,1.23095]
[1760339882032,2.49203503,4181.1,4181.0,1.23095]
[1760339882334,2.49203503,4181.1,4181.0,0.5707]
[1760339882526,0.6961,4180.7,4180.6,4.5568]
[1760339882725,2.11343503,4180.7,4180.6,4.9049]
[1760339883132,2.11343503,4180.7,4180.6,4.2088]
[1760339883326,1.0747,4180.7,4180.6,4.2088]
[1760339883629,1.0747,4180.7,4180.6,4.5568]
[1760339883630,0.6961,4180.7,4180.6,4.5568]
[1760339884030,0.3518,4180.7,4180.6,4.9049]
[1760339884634,5.50484539,4181.2,4181.1,1.34894]
[1760339884929,0.3786,4181.1,4180.6,3.2078]
[1760339885129,1.0747,4180.7,4180.6,4.2088]
[1760339885329,1.0747,4180.7,4180.6,3.6381]
[1760339885732,5.88344539,4180.7,4180.6,3.2078]
[1760339886037,0.6961,4180.3,4180.2,1.69713]
[1760339886232,8.76724525,4180.7,4180.2,1.69713]
[1760339886233,3.14960986,4180.7,4180.2,1.2668]
[1760339886530,3.2078,4181.0,4180.1,4.28367]
[1760339886531,0.3518,4181.0,4180.9,1.69707]
[1760339886834,0.6961,4181.0,4180.9,1.69707]
[1760339887032,4.2825,4181.5,4181.4,0.43021]
[1760339887230,3.9039,4181.5,4181.4,1.69701]
[1760339888231,4.2825,4181.5,4181.4,1.00091]
[1760339888632,4.2825,4181.5,4181.0,1.30564]
[1760339888633,1.0747,4181.3,4181.2,1.00093]
[1760339888830,0.6961,4180.9,4180.8,0.5707]
[1760339889031,0.6961,4180.9,4180.5,0.23]
[1760339889032,1.0747,4180.6,4180.5,1.00101]
[1760339889329,3.11761724,4180.9,4180.5,0.23]
[1760339889533,3.5596,4181.5,4181.4,1.2668]
[1760339889736,3.9039,4181.5,4181.4,1.2668]
[1760339889929,3.20962827,4182.0,4181.5,0.23]
[1760339890121,3.56142827,4182.0,4181.9,1.34886]
[1760339890326,3.56142827,4182.0,4181.9,1.69696]
[1760339890930,3.90572827,4182.0,4181.9,1.69696]
[1760339891235,4.28432827,4182.0,4181.9,1.00086]
[1760339891636,0.43021,4181.5,4180.8,0.5707]
[1760339891829,7.03831541,4182.0,4180.8,1.69708]
[1760339891830,0.3518,4180.9,4180.8,1.69708]
[1760339892029,0.3518,4180.9,4180.6,3.2078]
[1760339892030,6.11458348,4181.6,4181.5,0.9187]
[1760339892235,6.11458348,4181.6,4181.5,0.5707]
[1760339892431,6.11458348,4181.6,4181.0,0.23]
[1760339892432,7.51344182,4181.6,4181.1,0.43024]
[1760339892735,7.51344182,4181.6,4181.2,1.34893]
[1760339892736,0.6961,4181.3,4181.2,1.34893]
[1760339893441,0.6961,4181.3,4181.2,1.69703]
[1760339893940,0.6961,4181.3,4181.2,1.34893]
[1760339896035,0.80878,4181.8,4181.7,0.6961]
[1760339896036,0.3518,4181.8,4181.7,0.6961]
[1760339896335,0.35362827,4182.0,4181.9,1.69696]
[1760339896730,0.35362827,4182.0,4181.2,1.974992]
[1760339896731,1.50492,4181.3,4181.2,1.974992]
[1760339896935,1.0747,4180.8,4180.7,1.00098]
[1760339897134,1.0747,4180.8,4180.7,0.5707]
[1760339897837,0.6961,4180.8,4180.7,0.9187]
[1760339898038,0.6961,4180.8,4180.7,1.2668]
[1760339901039,9.05651348,4181.3,4180.7,1.2668]
[1760339901242,1.34232709,4181.2,4181.1,0.9047]
[1760339901444,0.753,4180.7,4180.6,0.554]
[1760339901742,0.753,4180.7,4180.6,0.9047]
[1760339902937,0.753,4180.7,4180.6,0.554]
[1760339903137,0.753,4180.2,4180.1,1.33504]
[1760339904834,0.753,4180.0,4179.9,0.554]
[1760339905140,1.56347,4179.9,4179.8,0.00194477]
[1760339905341,1.1331,4179.3,4179.2,3.2078]
[1760339905533,1.1331,4179.3,4178.9,1.68756984]
[1760339905534,0.3801,4179.3,4178.8,1.2848]
[1760339905740,0.43041,4179.5,4179.1,1.33515]
[1760339905741,0.3729,4179.2,4179.1,1.33515]
[1760339905935,0.3729,4179.2,4179.1,1.71525]
[1760339906343,0.3729,4179.2,4179.1,1.71776991]
[1760339907454,3.5807,4179.6,4179.5,1.92911]
[1760339908751,3.2078,4180.1,4180.0,1.92906]
[1760339910649,3.5807,4180.1,4180.0,1.92906]
[1760339911345,3.2078,4180.1,4180.0,1.92906]
[1760339912348,3.2078,4180.6,4180.5,1.37501]
[1760339912645,1.28011657,4181.9,4180.5,1.37501]
[1760339912646,0.3801,4181.0,4180.8,0.98428]
[1760339912848,1.1331,4180.9,4180.8,0.43028]
[1760339913445,1.1331,4180.9,4180.8,0.98428]
[1760339913950,0.753,4180.9,4180.8,1.33498]
[1760339914549,0.753,4180.9,4180.8,1.71508]
[1760339915951,0.753,4180.7,4180.6,0.9843]
[1760339916148,1.1331,4180.7,4180.6,0.4303]
[1760339916445,0.04162981,4181.0,4180.4,0.98431]
[1760339916446,0.753,4180.5,4180.4,0.98431]
[1760339916643,3.9608,4180.5,4180.4,0.98431]
[1760339917044,1.1331,4180.2,4180.1,0.43034]
[1760339918045,0.753,4180.2,4180.1,1.33504]
[1760339919154,0.753,4180.2,4180.1,1.71514]
[1760339919358,3.87078981,4181.0,4180.1,1.71514]
[1760339919359,0.753,4180.9,4180.8,0.78097]
[1760339919562,0.753,4180.9,4180.8,1.33497]
[1760339919753,3.91884219,4180.9,4180.8,1.33497]
[1760339922362,0.3801,4180.7,4180.6,0.4303]
[1760339922553,0.753,4180.7,4180.6,1.335]
[1760339923457,0.753,4180.7,4180.6,1.7151]
[1760339923853,0.3729,4180.7,4180.6,1.7151]
[1760339925362,0.753,4180.7,4180.6,1.7151]
[1760339925653,0.7212,4180.1,4180.0,1.54396]
[1760339926660,0.7212,4180.1,4180.0,1.90976]
[1760339927455,0.3588,4180.1,4180.0,1.90976]
[1760339928459,1.0854,4180.1,4180.0,1.54396]
[1760339928656,3.97062981,4181.0,4180.9,0.3738]
[1760339928856,4.55866146,4181.0,4180.9,1.2655]
[1760339929759,4.55866146,4181.0,4180.9,0.8997]
[1760339929965,4.91976146,4181.0,4180.9,0.8997]
[1760339930660,3.83746146,4181.0,4180.9,1.2421]
[1760339930859,3.2078,4181.6,4181.5,1.914]
[1760339931658,0.00182827,4182.0,4181.9,1.69746]
[1760339931957,0.3611,4183.5,4183.1,0.5559]
[1760339932256,3.2078,4183.6,4183.2,0.43003]
[1760339932257,3.12700941,4183.3,4183.2,0.43003]
[1760339932461,3.12700941,4183.3,4183.2,0.98593]
[1760339932766,3.16861515,4183.5,4183.3,0.5559]
[1760339933059,0.40557726,4183.5,4183.3,0.5559]
[1760339933264,3.13988624,4183.4,4183.3,0.5559]
[1760339935757,3.84858624,4183.4,4183.3,0.5559]
[1760339935960,1.13872,4183.3,4183.2,0.00218463]
[1760339936160,1.49982,4183.3,4183.2,0.00218463]
[1760339936963,0.7087,4182.4,4182.1,0.5559]
[1760339937169,1.0698,4182.4,4182.1,0.5559]
[1760339937469,0.7087,4182.4,4182.3,0.9249]
[1760339938169,0.7087,4182.4,4182.3,0.92751175]
[1760339940262,0.7087,4182.4,4182.3,0.55851175]
[1760339940468,1.0698,4181.6,4181.4,0.5559]
[1760339940666,0.3458,4181.6,4181.5,1.914]
[1760339941169,0.7087,4181.6,4181.5,1.914]
[1760339941364,0.7087,4181.6,4181.5,1.91617652]
[1760339941559,1.49999,4181.6,4181.5,0.55807652]
[1760339941764,1.0698,4181.6,4181.5,0.55807652]
[1760339942362,1.0698,4181.6,4181.5,0.00217652]
[1760339943265,4.12501378,4181.6,4181.5,0.00217652]